bitfinex-derivatives/quotes_BTCF0:USTF0_20241023
["timestamp","ask_amount","ask_price","bid_price","bid_amount"]
[1729692239320,0.074901,66798.0,66789.0,0.17]
[1729692239502,0.074901,66798.0,66797.0,0.074902]
[1729692239683,0.074905,66795.0,66794.0,0.074903]
[1729692240289,0.17,66795.0,66782.0,0.17]
[1729692240592,0.18608,66808.0,66782.0,0.074917]
[1729692240593,0.074919,66783.0,66782.0,0.074917]
[1729692240998,0.074919,66783.0,66782.0,0.10212945]
[1729692241685,0.074919,66783.0,66782.0,0.074917]
[1729692242791,0.17,66785.0,66784.0,0.074916]
[1729692242995,0.244915,66785.0,66784.0,0.074916]
[1729692243392,0.17,66785.0,66764.0,0.11684]
[1729692243592,0.074928,66774.0,66773.0,0.074927]
[1729692243791,0.17,66780.0,66772.0,0.17]
[1729692243993,0.074914,66787.0,66786.0,0.074913]
[1729692244196,0.074914,66787.0,66770.0,0.214531]
[1729692244197,0.074914,66787.0,66783.0,0.17]
[1729692244493,0.17,66790.0,66783.0,0.17]
[1729692244693,0.17,66784.0,66774.0,0.074927]
[1729692244896,0.17,66784.0,66780.0,0.074919]
[1729692244897,0.074922,66781.0,66780.0,0.074919]
[1729692245102,0.244914,66787.0,66786.0,0.074914]
[1729692245603,0.069,66793.0,66787.0,0.074913]
[1729692245805,0.11684,66799.0,66790.0,0.17]
[1729692245988,0.11684,66799.0,66787.0,0.074913]
[1729692245989,0.074901,66799.0,66798.0,0.074899]
[1729692246189,0.074895,66804.0,66803.0,0.074894]
[1729692246387,0.17,66809.0,66800.0,0.074897]
[1729692246388,0.074899,66801.0,66800.0,0.074897]
[1729692247992,0.17,66802.0,66791.0,0.143808]
[1729692247993,0.074903,66797.0,66796.0,0.074901]
[1729692248794,0.074903,66797.0,66788.0,0.07491]
[1729692248795,0.074912,66789.0,66788.0,0.07491]
[1729692249093,0.074912,66789.0,66783.0,0.10140416]
[1729692249094,0.074918,66784.0,66783.0,0.10140416]
[1729692249503,0.074921,66781.0,66780.0,0.074919]
[1729692249698,0.074924,66778.0,66777.0,0.074923]
[1729692249892,0.074924,66778.0,66777.0,0.074924]
[1729692249893,0.17,66778.0,66777.0,0.074924]
[1729692250196,0.244923,66778.0,66777.0,0.074924]
[1729692250387,0.074928,66775.0,66774.0,0.10254235]
[1729692250591,0.244928,66775.0,66774.0,0.10254235]
[1729692250787,0.17,66775.0,66770.0,0.059251]
[1729692250988,0.074937,66767.0,66766.0,0.074936]
[1729692251286,0.074937,66767.0,66760.0,0.059251]
[1729692251287,0.17,66767.0,66760.0,0.059251]
[1729692251486,0.244934,66769.0,66759.0,0.059251]
[1729692251487,0.244939,66764.0,66759.0,0.059251]
[1729692251695,0.244939,66764.0,66753.0,0.134202]
[1729692251696,0.074949,66755.0,66753.0,0.134202]
[1729692251893,0.17,66754.0,66753.0,0.074951]
[1729692252094,0.24495,66754.0,66753.0,0.074951]
[1729692253089,0.071,66763.0,66756.0,0.074948]
[1729692253090,0.17,66757.0,66756.0,0.074948]
[1729692253295,0.244947,66757.0,66756.0,0.074948]
[1729692253600,0.6194,66757.0,66748.0,0.059251]
[1729692253801,0.071,66763.0,66739.0,0.06149841]
[1729692253802,0.34,66749.0,66739.0,0.06149841]
[1729692254014,0.244966,66740.0,66739.0,0.00224741]
[1729692255509,0.244966,66740.0,66726.0,0.02729089]
[1729692255510,0.17,66740.0,66726.0,0.02729089]
[1729692255800,0.263597,66748.0,66714.0,0.074995]
[1729692255801,0.074982,66726.0,66725.0,0.074982]
[1729692256105,0.074986,66723.0,66721.0,0.10240204]
[1729692256302,0.26,66722.0,66721.0,0.10240204]
[1729692256601,0.074989,66720.0,66712.0,0.0022482]
[1729692256792,0.26,66719.0,66718.0,0.07499]
[1729692256993,0.334989,66719.0,66718.0,0.07499]
[1729692257199,0.074996,66713.0,66712.0,0.02943653]
[1729692257406,0.074996,66713.0,66712.0,0.0022482]
[1729692257407,0.334996,66713.0,66712.0,0.0022482]
[1729692257908,0.451876,66713.0,66712.0,0.0022482]
[1729692258694,0.26,66713.0,66712.0,0.0772452]
[1729692258902,0.37688,66713.0,66712.0,0.0772452]
[1729692259409,0.26,66722.0,66712.0,0.0022482]
[1729692259597,0.11692,66721.0,66716.0,0.074992]
[1729692259800,0.11692,66721.0,66712.0,0.0022482]
[1729692259801,0.26,66717.0,66712.0,0.0022482]
[1729692260105,0.26,66713.0,66712.0,0.0772452]
[1729692260303,0.26,66717.0,66712.0,0.0022482]
[1729692260601,0.11692,66720.0,66718.0,0.07499]
[1729692260904,0.26,66721.0,66720.0,0.074988]
[1729692262005,0.26,66721.0,66715.0,0.074993]
[1729692262006,0.334987,66721.0,66715.0,0.074993]
[1729692262312,0.334987,66721.0,66712.0,0.0022482]
[1729692262313,0.07499,66719.0,66716.0,0.074993]
[1729692262709,0.07499,66719.0,66717.0,0.074992]
[1729692263292,0.074992,66718.0,66713.0,0.074996]
[1729692263500,0.074992,66718.0,66712.0,0.02881585]
[1729692263802,0.074992,66718.0,66716.0,0.074993]
[1729692264005,0.26,66717.0,66716.0,0.074993]
[1729692264192,0.26,66726.0,66712.0,0.28881585]
[1729692264396,0.074954,66751.0,66712.0,0.28881585]
[1729692264397,0.26,66730.0,66716.0,0.26]
[1729692264600,0.334977,66730.0,66720.0,0.26]
[1729692264804,0.074973,66734.0,66720.0,0.26]
[1729692265019,0.26,66738.0,66725.0,0.26]
[1729692265197,0.26,66738.0,66737.0,0.074969]
[1729692265603,0.068,66754.0,66745.0,0.07496]
[1729692265604,0.26,66748.0,66745.0,0.07496]
[1729692265807,0.074959,66746.0,66742.0,0.074963]
[1729692266005,0.26,66748.0,66735.0,0.26084]
[1729692266203,0.26,66748.0,66736.0,0.00468855]
[1729692266204,0.074959,66747.0,66736.0,0.00468855]
[1729692266404,0.26,66748.0,66747.0,0.074958]
[1729692266607,0.334957,66748.0,66747.0,0.074958]
[1729692267912,0.334957,66748.0,66734.0,0.074971]
[1729692267913,0.07496,66746.0,66744.0,0.074961]
[1729692268109,0.07496,66745.0,66744.0,0.074961]
[1729692268410,0.26,66748.0,66732.0,0.0708]
[1729692268610,0.12268,66754.0,66719.0,0.0693]
[1729692268611,0.26,66734.0,66719.0,0.0693]
[1729692268823,0.26,66728.0,66719.0,0.1437]
[1729692269116,0.26,66724.0,66723.0,0.074985]
[1729692270816,0.26,66733.0,66721.0,0.09919449]
[1729692271118,0.0682,66742.0,66736.0,0.07497]
[1729692271119,0.074969,66737.0,66736.0,0.07497]
[1729692271419,0.12268,66740.0,66728.0,0.26]
[1729692271420,0.26,66738.0,66737.0,0.074969]
[1729692271613,0.074951,66754.0,66742.0,0.074964]
[1729692271614,0.38268,66743.0,66742.0,0.074964]
[1729692271920,0.074966,66740.0,66732.0,0.00076]
[1729692272106,0.074966,66740.0,66729.0,0.074978]
[1729692273113,0.074966,66740.0,66728.0,0.26076]
[1729692273114,0.074966,66740.0,66739.0,0.074967]
[1729692273315,0.26,66743.0,66728.0,0.26076]
[1729692273516,0.26,66743.0,66729.0,0.074978]
[1729692273821,0.26,66743.0,66742.0,0.074964]
[1729692274025,0.0726,66755.0,66737.0,0.26]
[1729692274026,0.26,66751.0,66737.0,0.26]
[1729692274311,0.26,66755.0,66754.0,0.07495]
[1729692274502,0.26,66755.0,66741.0,0.26]
[1729692274503,0.074953,66752.0,66741.0,0.26076]
[1729692274708,0.074953,66752.0,66751.0,0.074953]
[1729692276803,0.26,66755.0,66747.0,0.02757559]
[1729692277006,0.074953,66752.0,66742.0,0.408963]
[1729692277403,0.26,66751.0,66746.0,0.074959]
[1729692277609,0.26,66751.0,66742.0,0.074]
[1729692277610,0.074962,66744.0,66743.0,0.074962]
[1729692277906,0.26,66744.0,66730.0,0.00224774]
[1729692278113,0.074974,66733.0,66732.0,0.074974]
[1729692278424,0.26,66733.0,66732.0,0.074974]
[1729692278919,0.26,66737.0,66736.0,0.074969]
[1729692279123,0.074957,66749.0,66747.0,0.074957]
[1729692279124,0.074956,66749.0,66747.0,0.074957]
[1729692279414,0.074957,66748.0,66747.0,0.074957]
[1729692279625,0.334957,66748.0,66747.0,0.074957]
[1729692280012,0.074959,66747.0,66746.0,0.074958]
[1729692281114,0.074961,66745.0,66744.0,0.074961]
[1729692281315,0.26,66748.0,66739.0,0.02695928]
[1729692281618,0.26,66743.0,66742.0,0.074963]
[1729692281822,0.334962,66743.0,66742.0,0.074963]
[1729692282015,0.074968,66738.0,66737.0,0.074969]
[1729692282210,0.334968,66738.0,66737.0,0.074969]
[1729692282413,0.26,66738.0,66737.0,0.074969]
[1729692284016,0.334968,66738.0,66737.0,0.074969]
[1729692284909,0.074972,66735.0,66734.0,0.074972]
[1729692285126,0.334972,66735.0,66734.0,0.074972]
[1729692285305,0.074975,66732.0,66731.0,0.074976]
[1729692285508,0.26,66732.0,66730.0,0.05925892]
[1729692285811,0.26,66732.0,66728.0,0.05925892]
[1729692285812,0.074978,66729.0,66728.0,0.05925892]
[1729692286018,0.26,66729.0,66724.0,0.05925892]
[1729692286212,0.26,66729.0,66722.0,0.07723287]
[1729692286213,0.26,66725.0,66723.0,0.13424292]
[1729692286416,0.074984,66724.0,66723.0,0.13424292]
[1729692286620,0.074984,66724.0,66723.0,0.05925892]
[1729692286816,0.074984,66724.0,66722.0,0.00224787]
[1729692286817,0.074985,66723.0,66722.0,0.00224787]
[1729692287925,0.074985,66723.0,66722.0,0.07723387]
[1729692288715,0.074985,66723.0,66722.0,0.074986]
[1729692289819,0.074986,66722.0,66721.0,0.05925892]
[1729692290112,0.074987,66721.0,66720.0,0.13424692]
[1729692290318,0.074987,66721.0,66720.0,0.074988]
[1729692292324,0.0717,66724.0,66719.0,0.05933754]
[1729692292525,0.0717,66724.0,66718.0,0.05933754]
[1729692292731,0.074991,66718.0,66717.0,0.05934864]
[1729692292943,0.074991,66718.0,66717.0,0.13434064]
[1729692293424,0.26,66719.0,66718.0,0.074991]
[1729692293617,0.334989,66719.0,66718.0,0.074991]
[1729692294219,0.334989,66719.0,66717.0,0.05934864]
[1729692294220,0.26,66719.0,66717.0,0.05934864]
[1729692294413,0.074991,66718.0,66717.0,0.13433964]
[1729692295019,0.074991,66718.0,66717.0,0.05934864]
[1729692295428,0.074991,66718.0,66717.0,0.13434064]
[1729692295813,0.074991,66718.0,66717.0,0.05934864]
[1729692296015,0.074992,66717.0,66716.0,0.05934864]
[1729692296215,0.334992,66717.0,66716.0,0.07154226]
[1729692296623,0.074995,66715.0,66714.0,0.074994]
[1729692297222,0.074997,66712.0,66711.0,0.13434664]
[1729692297422,0.074997,66712.0,66711.0,0.14654143]
[1729692297823,0.334997,66712.0,66711.0,0.01219479]
[1729692298129,0.26,66712.0,66711.0,0.074998]
[1729692298327,0.074994,66715.0,66714.0,0.074995]
[1729692298819,0.074994,66715.0,66711.0,0.05934864]
[1729692298820,0.26,66720.0,66711.0,0.05934864]
[1729692299016,0.074992,66717.0,66716.0,0.074989]
[1729692299424,0.074994,66715.0,66714.0,0.05934864]
[1729692299628,0.074994,66715.0,66714.0,0.074995]
[1729692299830,0.074992,66718.0,66717.0,0.074991]
[1729692300132,0.074993,66716.0,66715.0,0.04448145]
[1729692300320,0.074994,66715.0,66714.0,0.04448145]
[1729692300515,0.074994,66715.0,66714.0,0.04448009]
[1729692300737,0.26,66716.0,66714.0,0.04448041]
[1729692300933,0.074995,66714.0,66713.0,0.04448041]
[1729692301124,0.26,66716.0,66711.0,0.074998]
[1729692301125,0.074997,66712.0,66711.0,0.074998]
[1729692301321,0.074997,66712.0,66711.0,0.14654122]
[1729692301527,0.07499,66719.0,66718.0,0.074989]
[1729692302323,0.0717,66724.0,66718.0,0.244989]
[1729692302324,0.074985,66724.0,66718.0,0.244989]
[1729692302535,0.074985,66724.0,66723.0,0.074985]
[1729692302720,0.1436,66742.0,66727.0,0.07498]
[1729692302721,0.074974,66734.0,66727.0,0.07498]
[1729692302923,0.1436,66742.0,66736.0,0.074968]
[1729692302924,0.074969,66737.0,66736.0,0.074968]
[1729692303219,0.074969,66740.0,66739.0,0.074966]
[1729692303627,0.074969,66740.0,66735.0,0.07497]
[1729692303628,0.07497,66736.0,66735.0,0.07497]
[1729692304023,0.07497,66736.0,66735.0,0.11942649]
[1729692304231,0.17,66740.0,66735.0,0.07497]
[1729692304429,0.17,66740.0,66733.0,0.05934864]
[1729692304430,0.074967,66739.0,66738.0,0.074965]
[1729692304726,0.074964,66742.0,66741.0,0.074962]
[1729692305132,0.07496,66747.0,66746.0,0.074957]
[1729692305525,0.07496,66747.0,66746.0,0.11939004]
[1729692306125,0.196829,66755.0,66740.0,0.074965]
[1729692306126,0.074951,66755.0,66754.0,0.074948]
[1729692306434,0.143442,66761.0,66744.0,0.26]
[1729692306435,0.074951,66753.0,66752.0,0.04441395]
[1729692306637,0.074951,66753.0,66752.0,0.11936595]
[1729692306929,0.074948,66756.0,66755.0,0.074947]
[1729692308036,0.074951,66755.0,66754.0,0.07495]
[1729692309139,0.074933,66770.0,66754.0,0.07495]
[1729692309140,0.26,66772.0,66754.0,0.72158651]
[1729692309441,0.26,66772.0,66766.0,0.074936]
[1729692309442,0.074938,66767.0,66766.0,0.074936]
[1729692309630,0.074938,66767.0,66756.0,0.074947]
[1729692309631,0.074947,66760.0,66759.0,0.074944]
[1729692309935,0.074947,66760.0,66755.0,0.0672]
[1729692309936,0.074948,66756.0,66755.0,0.142148]
[1729692310133,0.074948,66756.0,66755.0,0.07188694]
[1729692310340,0.26,66764.0,66755.0,0.0672]
[1729692310525,0.074948,66756.0,66755.0,0.0672]
[1729692310724,0.074933,66770.0,66758.0,0.074945]
[1729692310725,0.074944,66760.0,66758.0,0.074945]
[1729692310939,0.074937,66766.0,66756.0,0.26]
[1729692311128,0.074937,66766.0,66755.0,0.0672]
[1729692311129,0.074938,66765.0,66764.0,0.074939]
[1729692311330,0.26,66771.0,66760.0,0.074943]
[1729692311527,0.26,66771.0,66757.0,0.26]
[1729692311528,0.074939,66765.0,66757.0,0.26]
[1729692311731,0.67996,66785.0,66761.0,0.26]
[1729692311932,0.67996,66785.0,66772.0,0.26]
[1729692311933,0.12188,66781.0,66772.0,0.26]
[1729692312235,0.074928,66774.0,66773.0,0.0701]
[1729692313243,0.26,66776.0,66765.0,0.074937]
[1729692313425,0.26,66770.0,66762.0,0.09572646]
[1729692313626,0.074936,66767.0,66765.0,0.074938]
[1729692314236,0.12188,66781.0,66766.0,0.26]
[1729692314542,0.38188,66781.0,66773.0,0.074928]
[1729692314728,0.074927,66775.0,66773.0,0.074928]
[1729692314924,0.26,66777.0,66766.0,0.00076]
[1729692315141,0.26,66777.0,66770.0,0.074932]
[1729692315356,0.26,66773.0,66762.0,0.0682]
[1729692315534,0.074937,66766.0,66759.0,0.0733]
[1729692315847,0.074937,66766.0,66760.0,0.00468637]
[1729692316028,0.074937,66766.0,66765.0,0.074938]
[1729692316229,0.07494,66763.0,66761.0,0.074941]
[1729692316534,0.26,66768.0,66757.0,0.26076]
[1729692316535,0.074946,66758.0,66757.0,0.00076]
[1729692316725,0.26,66758.0,66754.0,0.02671103]
[1729692316930,0.074949,66755.0,66750.0,0.04439143]
[1729692317130,0.26,66758.0,66750.0,0.04439143]
[1729692317436,0.074949,66755.0,66754.0,0.074949]
[1729692317740,0.26,66758.0,66750.0,0.11934643]
[1729692317944,0.334953,66751.0,66750.0,0.04439143]
[1729692319231,0.784393,66751.0,66750.0,0.04439143]
[1729692319437,0.074965,66741.0,66740.0,0.0022474]
[1729692319635,0.334965,66741.0,66740.0,0.0022474]
[1729692319844,0.334965,66741.0,66726.0,0.0734]
[1729692320034,0.334965,66741.0,66730.0,0.074977]
[1729692320035,0.074977,66731.0,66730.0,0.074977]
[1729692320440,0.074977,66731.0,66728.0,0.074978]
[1729692320647,0.074975,66732.0,66730.0,0.074977]
[1729692320838,0.26,66735.0,66724.0,0.074984]
[1729692320839,0.074977,66731.0,66724.0,0.074984]
[1729692321040,0.26,66735.0,66723.0,0.28686501]
[1729692321240,0.26,66735.0,66726.0,0.074981]
[1729692321536,0.07498,66727.0,66726.0,0.074981]
[1729692321938,0.074973,66734.0,66723.0,0.26]
[1729692322247,0.074975,66732.0,66724.0,0.00468887]
[1729692322447,0.074975,66732.0,66729.0,0.074977]
[1729692322747,0.26,66739.0,66729.0,0.074977]
[1729692323046,0.26,66734.0,66729.0,0.074977]
[1729692323243,0.26,66734.0,66724.0,0.074983]
[1729692323244,0.074982,66726.0,66724.0,0.074983]
[1729692323539,0.074982,66726.0,66719.0,0.31934864]
[1729692323540,0.074982,66726.0,66723.0,0.074984]
[1729692323729,0.26,66730.0,66719.0,0.31934864]
[1729692323935,0.26,66730.0,66720.0,0.00468894]
[1729692324135,0.26,66730.0,66725.0,0.074982]
[1729692324136,0.074982,66727.0,66725.0,0.074982]
[1729692324337,0.074981,66727.0,66720.0,0.05934864]
[1729692324544,0.074982,66726.0,66723.0,0.074985]
[1729692324841,0.074982,66726.0,66722.0,0.074985]
[1729692325032,0.074982,66726.0,66723.0,0.074984]
[1729692325233,0.074982,66726.0,66725.0,0.074983]
[1729692325433,0.3294,66734.0,66719.0,0.31934864]
[1729692325641,0.074987,66722.0,66720.0,0.074988]
[1729692325845,0.074987,66722.0,66719.0,0.26]
[1729692325846,0.26,66721.0,66716.0,0.12744864]
[1729692326139,0.0694,66734.0,66709.0,0.26]
[1729692326140,0.074988,66720.0,66718.0,0.07499]
[1729692326345,0.074989,66720.0,66718.0,0.07499]
[1729692326736,0.26,66725.0,66714.0,0.074995]
[1729692326933,0.26,66725.0,66712.0,0.05934864]
[1729692326934,0.26,66717.0,66712.0,0.05934864]
[1729692327144,0.26,66717.0,66715.0,0.074994]
[1729692327346,0.26,66717.0,66711.0,0.074998]
[1729692327347,0.074997,66712.0,66711.0,0.074998]
[1729692327551,0.074997,66712.0,66711.0,0.07968788]
[1729692327847,0.204422,66726.0,66711.0,0.00468988]
[1729692327848,0.12944,66726.0,66711.0,0.00468988]
[1729692328140,0.12944,66726.0,66710.0,0.20674764]
[1729692328141,0.26,66727.0,66714.0,0.26]
[1729692328342,0.074979,66729.0,66714.0,0.26]
[1729692328343,0.074979,66729.0,66727.0,0.074979]
[1729692328545,0.074984,66724.0,66723.0,0.00076]
[1729692328849,0.334985,66724.0,66722.0,0.074986]
[1729692329141,0.334985,66724.0,66723.0,0.074985]
[1729692329350,0.334985,66724.0,66723.0,0.07967422]
[1729692329351,0.074985,66724.0,66723.0,0.07967422]
[1729692329641,0.074985,66724.0,66723.0,0.074985]
[1729692330550,0.26,66724.0,66715.0,0.13360864]
[1729692330743,0.074989,66720.0,66719.0,0.074989]
[1729692330933,0.26,66724.0,66723.0,0.074985]
[1729692330934,0.334984,66724.0,66723.0,0.074985]
[1729692331138,0.26,66724.0,66723.0,0.074985]
[1729692331348,0.074982,66726.0,66716.0,0.074992]
[1729692331535,0.334985,66723.0,66722.0,0.074986]
[1729692331836,0.334985,66723.0,66714.0,0.05934864]
[1729692331837,0.26,66723.0,66714.0,0.05934864]
[1729692332041,0.074993,66716.0,66715.0,0.0796825]
[1729692332344,0.074993,66716.0,66715.0,0.074993]
[1729692332548,0.074993,66716.0,66715.0,0.00468965]
[1729692332739,0.334989,66719.0,66718.0,0.074991]
[1729692332937,0.26,66723.0,66715.0,0.00468983]
[1729692333144,0.074986,66722.0,66721.0,0.074987]
[1729692333849,0.074986,66722.0,66711.0,0.2608]
[1729692333850,0.07499,66719.0,66718.0,0.07499]
[1729692334242,0.24499,66719.0,66718.0,0.07499]
[1729692335250,0.17,66719.0,66718.0,0.07499]
[1729692335639,0.17,66719.0,66707.0,0.075003]
[1729692335640,0.074998,66711.0,66707.0,0.075003]
[1729692335844,0.245002,66708.0,66707.0,0.075003]
[1729692336246,0.17,66708.0,66707.0,0.07969297]
[1729692336441,0.415002,66708.0,66707.0,0.00468997]
[1729692336654,0.075004,66706.0,66705.0,0.10169266]
[1729692336845,0.075004,66706.0,66705.0,0.075005]
[1729692337151,0.074998,66712.0,66711.0,0.074997]
[1729692337551,0.142482,66726.0,66715.0,0.074994]
[1729692337552,0.244993,66716.0,66715.0,0.074994]
[1729692338259,0.17,66716.0,66715.0,0.074994]
[1729692338640,0.17,66716.0,66706.0,0.075004]
[1729692338641,0.17,66719.0,66718.0,0.074991]
[1729692340353,0.244989,66719.0,66718.0,0.074991]
[1729692342264,0.17,66719.0,66718.0,0.074991]
[1729692342650,0.17,66727.0,66722.0,0.074986]
[1729692342846,0.17,66727.0,66726.0,0.074982]
[1729692343156,0.074977,66730.0,66729.0,0.074977]
[1729692343450,0.074985,66723.0,66722.0,0.13433464]
[1729692343656,0.074987,66721.0,66720.0,0.074988]
[1729692343845,0.244987,66721.0,66720.0,0.074988]
[1729692344156,0.17,66721.0,66720.0,0.074988]
[1729692345045,0.244987,66721.0,66720.0,0.074988]
[1729692345246,0.244987,66721.0,66717.0,0.13434064]
[1729692345247,0.17,66721.0,66717.0,0.13434064]
[1729692345447,0.074991,66718.0,66717.0,0.074992]
[1729692346046,0.074992,66717.0,66716.0,0.02657978]
[1729692346250,0.244992,66717.0,66716.0,0.05928073]
[1729692346555,0.074993,66716.0,66715.0,0.02702547]
[1729692346755,0.074993,66716.0,66713.0,0.1491997]
[1729692346756,0.17,66716.0,66713.0,0.1491997]
[1729692347053,0.074995,66714.0,66713.0,0.1491997]
[1729692347256,0.074995,66714.0,66713.0,0.23680594]
[1729692347446,0.074995,66714.0,66713.0,0.16181094]
[1729692347646,0.074995,66714.0,66710.0,0.074999]
[1729692347647,0.074996,66713.0,66712.0,0.0742554]
[1729692347952,0.244996,66713.0,66712.0,0.16218465]
[1729692348363,0.334996,66713.0,66712.0,0.16218465]
[1729692348553,0.334996,66713.0,66712.0,0.08793018]
[1729692349449,0.334996,66713.0,66712.0,0.08805003]
[1729692350059,0.334996,66713.0,66712.0,0.07433322]
[1729692350257,0.334996,66713.0,66712.0,0.16254188]
[1729692350562,0.334996,66713.0,66712.0,0.08820866]
[1729692350855,0.26,66713.0,66711.0,0.07433658]
[1729692351056,0.26,66713.0,66709.0,0.075]
[1729692351257,0.074998,66711.0,66710.0,0.08818259]
[1729692351469,0.074998,66711.0,66710.0,0.16318259]
[1729692351470,0.334998,66711.0,66710.0,0.16318259]
[1729692351850,0.334998,66711.0,66710.0,0.25222823]
[1729692352353,0.334998,66711.0,66710.0,0.17722823]
[1729692352548,0.26,66711.0,66710.0,0.25222823]
[1729692352747,0.26,66711.0,66710.0,0.16318259]
[1729692353354,0.26,66715.0,66714.0,0.074995]
[1729692353660,0.33499,66719.0,66718.0,0.074991]
[1729692353859,0.33499,66719.0,66718.0,0.16317359]
[1729692354157,0.33499,66719.0,66718.0,0.16289384]
[1729692354348,0.33499,66719.0,66718.0,0.08790284]
[1729692354554,0.33499,66719.0,66718.0,0.16289384]
[1729692355360,0.33499,66719.0,66718.0,0.16224822]
[1729692355661,0.33499,66719.0,66718.0,0.16235645]
[1729692355863,0.33499,66719.0,66718.0,0.07434538]
[1729692356064,0.334989,66719.0,66718.0,0.07434538]
[1729692356268,0.334989,66719.0,66718.0,0.18912101]
[1729692356449,0.0697,66727.0,66718.0,0.18976663]
[1729692356450,0.26,66724.0,66718.0,0.18976663]
[1729692356649,0.0697,66727.0,66726.0,0.07498]
[1729692356650,0.07498,66727.0,66726.0,0.07498]
[1729692356851,0.26,66729.0,66728.0,0.074979]
[1729692357046,0.26,66733.0,66732.0,0.074975]
[1729692357359,0.074972,66735.0,66734.0,0.074973]
[1729692357668,0.074972,66735.0,66734.0,0.16301338]
[1729692358156,0.33497,66737.0,66736.0,0.07497]
[1729692358464,0.074966,66740.0,66739.0,0.074967]
[1729692358665,0.334964,66742.0,66741.0,0.074965]
[1729692358853,0.334964,66742.0,66741.0,0.14917784]
[1729692359365,0.334964,66742.0,66741.0,0.074965]
[1729692362254,0.334964,66742.0,66741.0,0.13426682]
[1729692362451,0.334964,66742.0,66741.0,0.16123899]
[1729692362648,0.334964,66742.0,66741.0,0.02697217]
[1729692362859,0.074965,66741.0,66740.0,0.13426782]
[1729692363160,0.074965,66741.0,66736.0,0.05930182]
[1729692363360,0.074969,66737.0,66736.0,0.074969]
[1729692363755,0.074971,66735.0,66734.0,0.05930182]
[1729692364263,0.26,66738.0,66733.0,0.05930182]
[1729692364451,0.334973,66734.0,66733.0,0.08677816]
[1729692364653,0.074976,66731.0,66730.0,0.05930906]
[1729692364957,0.074976,66731.0,66726.0,0.074981]
[1729692364958,0.074977,66730.0,66729.0,0.074978]
[1729692365163,0.074977,66730.0,66729.0,0.13428706]
[1729692365465,0.074977,66730.0,66729.0,0.074978]
[1729692366165,0.074977,66730.0,66725.0,0.05930906]
[1729692366352,0.334982,66726.0,66724.0,0.05930906]
[1729692366557,0.334983,66725.0,66724.0,0.05930906]
[1729692367160,0.074984,66724.0,66723.0,0.13429406]
[1729692367466,0.26,66725.0,66722.0,0.05930906]
[1729692367467,0.074985,66723.0,66722.0,0.05930906]
[1729692367664,0.074985,66723.0,66717.0,0.07421284]
[1729692367665,0.074987,66721.0,66717.0,0.07421284]
[1729692367882,0.074994,66715.0,66714.0,0.07421284]
[1729692368055,0.074994,66715.0,66706.0,0.00224856]
[1729692368056,0.074997,66713.0,66712.0,0.074996]
[1729692368362,0.074998,66711.0,66710.0,0.07421284]
[1729692368563,0.074998,66711.0,66710.0,0.16212071]
[1729692368772,0.074998,66711.0,66710.0,0.23712071]
[1729692369662,0.07499,66719.0,66718.0,0.074988]
[1729692369863,0.26,66725.0,66720.0,0.074988]
[1729692370070,0.074987,66721.0,66720.0,0.074988]
[1729692371358,0.074981,66727.0,66726.0,0.07498]
[1729692371759,0.132,66728.0,66720.0,0.21848545]
[1729692371760,0.132,66728.0,66725.0,0.05933596]
[1729692371960,0.074977,66730.0,66725.0,0.07418545]
[1729692372162,0.392,66734.0,66723.0,0.26]
[1729692372163,0.074973,66734.0,66733.0,0.074972]
[1729692376870,0.074973,66734.0,66733.0,0.05928942]
[1729692377059,0.26,66735.0,66731.0,0.13426442]
[1729692377060,0.074975,66732.0,66731.0,0.13426442]
[1729692377260,0.334975,66732.0,66731.0,0.074975]
[1729692378065,0.334975,66732.0,66727.0,0.07418545]
[1729692378265,0.074968,66738.0,66728.0,0.074979]
[1729692378266,0.074979,66729.0,66728.0,0.074979]
[1729692378473,0.244979,66729.0,66728.0,0.074979]
[1729692379571,0.244979,66729.0,66727.0,0.07418545]
[1729692379572,0.17,66729.0,66727.0,0.07418545]
[1729692379761,0.074979,66728.0,66727.0,0.14916545]
[1729692379963,0.074979,66728.0,66727.0,0.24816842]
[1729692380184,0.074979,66728.0,66727.0,0.17318842]
[1729692380470,0.074979,66728.0,66727.0,0.17320258]
[1729692380966,0.074979,66728.0,66724.0,0.07418545]
[1729692380967,0.07498,66727.0,66724.0,0.07418545]
[1729692381169,0.074984,66724.0,66723.0,0.07418545]
[1729692381369,0.074984,66724.0,66723.0,0.16126195]
[1729692381569,0.074984,66724.0,66723.0,0.0870906]
[1729692382071,0.074984,66724.0,66723.0,0.16127377]
[1729692382264,0.074984,66724.0,66723.0,0.1612792]
[1729692382459,0.074984,66724.0,66723.0,0.0870906]
[1729692383568,0.074986,66722.0,66721.0,0.07422357]
[1729692383772,0.244986,66722.0,66721.0,0.07422357]
[1729692383973,0.17,66722.0,66721.0,0.07422357]
[1729692384176,0.17,66722.0,66712.0,0.0695]
[1729692384177,0.17,66722.0,66718.0,0.07422357]
[1729692384377,0.074997,66712.0,66711.0,0.07422357]
[1729692384675,0.074997,66712.0,66709.0,0.07426647]
[1729692384676,0.074998,66712.0,66709.0,0.07426647]
[1729692384984,0.245,66710.0,66709.0,0.14926647]
[1729692385272,0.245,66710.0,66709.0,0.23698386]
[1729692385465,0.245,66710.0,66709.0,0.23700385]
[1729692385672,0.245,66710.0,66709.0,0.08771739]
[1729692385972,0.245,66710.0,66709.0,0.16200418]